[Event "FIDE WY-U16 Olympiad 2022"]
[Site "Nakhchivan"]
[Date "2022.10.05"]
[Round "4.14"]
[White "Aslanov, Umid"]
[Black "Ashraf, Artin"]
[Result "1/2-1/2"]
[ECO "B15"]
[WhiteElo "2273"]
[BlackElo "2379"]
[Annotator "TA"]
[PlyCount "147"]
[EventDate "2022.10.02"]
[EventType "team-tourn"]
[EventCountry "AZE"]
[SourceTitle "playchess.com"]
[Source "ChessBase"]
[SourceQuality "1"]
[WhiteTeam "Azerbaijan"]
[BlackTeam "Iran"]
[WhiteTeamCountry "AZE"]
[BlackTeamCountry "IRI"]
[TimeControl "40/5400+30:1800+30"]

{[%evp 14,147,31,27,36,20,43,29,43,36,41,45,38,35,31,19,19,12,23,16,27,0,19,0,0,-43,-45,-59,-55,-83,-97,-112,-129,-124,-122,-140,-150,-158,-156,-150,-155,-160,-171,-152,-166,-172,-157,-221,-240,-216,-232,-243,-246,-225,-89,-83,-83,-87,-79,-84,-72,-92,-39,-43,-40,-83,-78,-89,-38,-85,-38,-39,-39,-44,-44,-96,-38,-38,-9,-39,-39,-96,-96,-96,-39,-39,-39,-39,-39,-39,-39,-96,-96,-214,-46,-46,-46,-46,-46,-46,-46,-150,-150,-150,-46,-150,-150,-150,-46,-150,-46,-46,-46,-46,-46,-64,-46,-46,-46,-46,-46,-46,-24,-24,-24,-24,8,8,8,8,8,8,8,8,8,8]} 1. e4 {[%emt 0:00:02]} c6 {[%emt 0:00:27]} 2. d4 {[%emt 0:00:08]} d5 {[%emt 0:00:06]} 3. Nd2 {[%emt 0:00:07]} dxe4 {[%emt 0:00:07]} 4. Nxe4 {[%emt 0:00:06]} Nf6 {[%emt 0:00:08]} 5. Nxf6+ {[%emt 0:00:49]} exf6 {[%emt 0:00:02]} 6. c3 {[%emt 0:00:16]} Bd6 {[%emt 0:00:12]} 7. Bd3 {[%emt 0:00:14]} O-O {[%emt 0:00:06]} 8. Qc2 {[%emt 0:00:45] Active counter play!} Re8+ {[%emt 0:00:01] B15: Caro-Kann: 3 Nc3: 3...g6 and 3...dxe4 4 Nxe4 Nf6 5 Nxf6+ exf6.} 9. Ne2 {[%emt 0:00:17]} h5 {[%emt 0:00:07]} 10. O-O {[%emt 0:00:22]} h4 {[%emt 0:00:05] White has an edge.} 11. h3 {[%emt 0:00:04]} Nd7 {[%emt 0:00:13]} 12. Be3 {[%emt 0:02:49]} Nf8 {[%emt 0:10:58]} 13. Rad1 {[%emt 0:00:29]} Bd7 {[%emt 0:01:46]} 14. Rfe1 {[%emt 0:00:24]} Qc8 {[%emt 0:00:29][%cal Od7h3]} 15. Nf4 {[%emt 0:00:17]} Qc7 {[%emt 0:00:21]} 16. Qd2 {[%emt 0:07:34]} (16. Nh5 {is interesting.} Qa5 17. d5 Re5 18. dxc6 Bxc6 19. b4) 16... Rad8 {[%emt 0:00:03]} 17. c4 {[%emt 0:05:10]} Qc8 {[%emt 0:00:01] [#]} 18. a3 $146 {[%emt 0:20:18]} ({Predecessor:} 18. d5 c5 19. a3 Re5 20. Bf1 Rde8 21. Nd3 Re4 22. f3 R4e7 23. Bf2 Ng6 24. Rxe7 Bxe7 {1-0 (43) Doshi,M (2332)-Stankovic,M (2432) Paracin 2021}) 18... Bf5 {[%emt 0:27:57]} 19. Bf1 {[%emt 0:06:54]} Bb8 {[%emt 0:07:12]} 20. Ne2 {[%emt 0:22:08]} Ng6 {[%emt 0:18:39]} (20... Qc7 21. Bf4 Qc8 22. d5 $11) 21. f4 {[%emt 0:07:51]} Qc7 {[%emt 0:04:31]} 22. d5 {[%emt 0:03:17] [#]} Bc2 $1 {[%emt 0:05:31][%mdl 512]} 23. Rc1 {[%emt 0:05:11]} Be4 {[%emt 0:00:02]} 24. Nc3 {[%emt 0:09:58]} f5 {[%emt 0:05:53][%cal Rg6f4]} 25. Nxe4 {[%emt 0:05:08]} fxe4 {[%emt 0:00:26]} 26. Rcd1 {[%emt 0:01:13]} Nxf4 {[%emt 0:08:21]} 27. Bxf4 {[%emt 0:01:06]} Qxf4 {[%emt 0:00:01]} 28. Qxf4 {[%emt 0:00:07]} Bxf4 {[%emt 0:00:19]} 29. dxc6 {[%emt 0:00:07][%cal Oe1e4] [#]} Be3+ $1 {[%emt 0:01:19][%mdl 512]} 30. Rxe3 {[%emt 0:00:58]} (30. Kh2 $17 {was called for.} Rxd1 31. Rxd1 bxc6 32. b4) (30. Kh1 Rxd1) 30... Rxd1 $19 {[%emt 0:00:27]} 31. cxb7 $17 {[%emt 0:00:05][%mdl 4096] Endgame Threatens to win with c5. KRR-KRB} Rb8 $1 {[%emt 0:01:58]} 32. Rxe4 {[%emt 0:00:19]} Rxb7 {[%emt 0:00:09]} 33. b4 {[%emt 0:00:28]} Ra1 {[%emt 0:00:42]} (33... Rb6 $19 34. Rf4 Ra6) 34. Rxh4 {[%emt 0:01:40]} Rxa3 {[%emt 0:00:03]} 35. c5 {[%emt 0:00:46]} Rc3 {[%emt 0:01:11]} 36. Rd4 {[%emt 0:00:27]} g6 {[%emt 0:02:09]} 37. Kf2 {[%emt 0:00:24]} Rc2+ {[%emt 0:00:51]} (37... Kg7 $17 38. Bd3 a5 39. bxa5 Rbb3) 38. Kf3 $15 {[%emt 0:00:20]} Re7 {[%emt 0:01:50]} 39. Rc4 {[%emt 0:00:45]} Rxc4 {[%emt 0:01:30]} 40. Bxc4 $17 {[%emt 0:00:03] KR-KB} Kg7 {[%emt 0:00:16]} (40... Re1 $1 $17) 41. b5 {[%emt 0:03:32]} (41. c6 $15 {might be stronger.}) 41... Kf6 {[%emt 0:03:52]} (41... f5 $1 $17) 42. h4 {[%emt 0:07:44]} Ke5 {[%emt 0:00:59] White must now prevent ...Kd4.} 43. Ke3 {[%emt 0:00:20]} f6 {[%emt 0:01:24]} 44. g3 {[%emt 0:01:58]} (44. c6 $15) 44... Rd7 {[%emt 0:04:02]} ({Better is} 44... f5 $1 $17) 45. c6 $15 {[%emt 0:01:45]} Re7 {[%emt 0:00:15]} 46. Bd3 {[%emt 0:03:12]} f5 {[%emt 0:00:50]} 47. Be2 {[%emt 0:00:31]} (47. Kf2 $15) 47... Kd6+ $17 {[%emt 0:00:44]} 48. Kf2 {[%emt 0:00:25]} Kc5 {[%emt 0:02:13]} (48... Re5 $1 $17 49. Kf3 Re4) 49. Bd3 $15 {[%emt 0:00:42]} Kd4 {[%emt 0:00:27]} 50. Bf1 {[%emt 0:00:10]} Re3 {[%emt 0:01:00]} 51. Be2 $1 {[%emt 0:01:03]} Rb3 {[%emt 0:02:50]} 52. Bc4 {[%emt 0:04:35]} Rc3 $17 {[%emt 0:00:32]} (52... Kxc4 $2 53. c7 $18) 53. Bf7 {[%emt 0:00:59]} (53. Be2 $17) 53... Kc5 $2 {[%emt 0:00:19]} (53... Rc2+ $19 54. Kf3 Ke5 55. Bxg6 Rc5) 54. Bxg6 $15 {[%emt 0:00:38] And now h5 would win.} Kxb5 {[%emt 0:00:03]} 55. h5 {[%emt 0:03:00]} Kxc6 {[%emt 0:01:52]} 56. h6 {[%emt 0:00:47] Strongly threatening h7.} Kd6 $1 {[%emt 0:01:12]} 57. h7 {[%emt 0:02:11]} ({White has to play} 57. Bxf5 $15 Rb3 58. Ke2) 57... Rc8 $17 {[%emt 0:00:08]} 58. Bxf5 {[%emt 0:00:21]} Rb8 {[%emt 0:01:00]} (58... Rd8 $1 $17 59. Ke3 Ke5) 59. Bc2 {[%emt 0:01:04]} (59. Ke3 $15) 59... Ke5 {[%emt 0:00:25]} 60. Ke3 {[%emt 0:00:33] [#]} Kf6 {[%emt 0:00:08]} (60... Rd8 $1 $17 {aiming for ...a5.} 61. Bd3 Kf6) 61. Kd4 {[%emt 0:00:23] [#]} (61. Kd2 $1 $15) 61... Kg7 {[%emt 0:00:02]} (61... Rc8 $1 $17 {...Kg7 is the strong threat.} 62. g4 Kg7) 62. Kc3 $1 $15 {[%emt 0:00:21]} Kh8 {[%emt 0:00:18]} 63. g4 {[%emt 0:00:22][%cal Bg3g4,Bg4g5][%mdl 32]} Rb5 {[%emt 0:00:09]} 64. Kc4 {[%emt 0:00:23]} Rb7 {[%emt 0:00:10]} 65. g5 {[%emt 0:00:30]} Kg7 {[%emt 0:00:08]} ({But not} 65... Rc7+ $2 66. Kb3 $17) 66. Kc3 {[%emt 0:00:54]} Rb5 {[%emt 0:00:06]} 67. g6 {[%emt 0:00:16]} Rg5 {[%emt 0:00:18]} 68. Kb4 {[%emt 0:00:24]} Rg2 {[%emt 0:00:09]} 69. Bd3 {[%emt 0:00:40]} Rxg6 {[%emt 0:00:17]} 70. Bxg6 {[%emt 0:00:13] The position is equal.} a5+ {[%emt 0:00:07]} 71. Kxa5 {[%emt 0:00:05]} Kh8 {[%emt 0:00:11]} 72. Kb5 $1 {[%emt 0:00:04]} Kg7 {[%emt 0:00:05]} 73. h8=Q+ {[%emt 0:00:04]} Kxh8 {[%emt 0:00:49]} 74. Kc5 {Weighted Error Value: White=0.18 (very precise) /Black=0.18 (very precise)} 1/2-1/2

[Event "FIDE WY-U16 Olympiad 2022"]
[Site "Nakhchivan"]
[Date "2022.10.05"]
[Round "4.14"]
[White "Rzayev, Murad"]
[Black "Galaviz Medina, Atlas Adomaitis"]
[Result "0-1"]
[ECO "E98"]
[WhiteElo "1699"]
[BlackElo "2131"]
[Annotator "TA"]
[PlyCount "70"]
[EventDate "2022.10.02"]
[EventType "team-tourn"]
[EventCountry "AZE"]
[SourceTitle "playchess.com"]
[Source "ChessBase"]
[SourceQuality "1"]
[WhiteTeam "Azerbaijan"]
[BlackTeam "Mexico"]
[WhiteTeamCountry "AZE"]
[BlackTeamCountry "MEX"]
[TimeControl "40/5400+30:1800+30"]

{[%evp 24,70,79,66,54,54,58,68,68,42,57,-3,40,0,8,0,0,-35,-13,-66,0,0,0,0,0,0,0,-160,-96,-202,-189,-304,-287,-321,-333,-569,-567,-736,-703,-1437,-1493,-1563,-1531,-2775,-1198,-29989,-29975,-29989,-29990]} 1. d4 {[%emt 0:00:01]} Nf6 {[%emt 0:00:06]} 2. c4 {[%emt 0:00:05]} g6 {[%emt 0:00:04]} 3. Nc3 {[%emt 0:00:04]} Bg7 {[%emt 0:00:03]} 4. e4 {[%emt 0:00:06]} d6 {[%emt 0:00:03]} 5. Nf3 {[%emt 0:00:03][%cal Bg1f3,Bf3e1,Be1d3][%mdl 32]} O-O {[%emt 0:00:08]} 6. Be2 {[%emt 0:00:03]} e5 {[%emt 0:00:04]} 7. O-O {[%emt 0:00:18]} Nc6 {[%emt 0:00:03]} 8. d5 {[%emt 0:00:06]} Ne7 {[%emt 0:00:03]} 9. Ne1 {[%emt 0:00:06]} Ne8 {[%emt 0:00:10]} 10. Be3 {[%emt 0:00:16]} f5 {[%emt 0:00:05]} 11. f3 {[%emt 0:00:04]} f4 {[%emt 0:00:04]} 12. Bf2 {[%emt 0:00:04]} g5 {[%emt 0:00:09] 12...h5 is not played anymore.} 13. Nd3 {[%emt 0:00:07]} Rf6 {[%emt 0:02:47] E98: King's Indian: Classical Main Line: 9 Ne1.} 14. Rc1 {[%emt 0:00:44]} Rg6 {[%emt 0:01:43]} 15. c5 {[%emt 0:02:53]} h5 {[%emt 0:00:29] White is slightly better.} 16. cxd6 {[%emt 0:02:38]} cxd6 {[%emt 0:00:07]} 17. a4 {[%emt 0:03:21] [#]} ({White should play} 17. Kh1 $14) 17... Bh6 $146 {[%emt 0:15:54]} ({Predecessor:} 17... g4 18. Qe1 Bd7 19. Nb5 Bh6 20. Rc3 a6 21. Na3 Bxa4 22. Nc4 Nc8 23. b4 g3 24. hxg3 fxg3 25. Bxg3 {0-1 (40) Sjol,H-Gilbert,J (2148) Gausdal 2005}) 18. Rc2 {[%emt 0:12:05]} (18. Qb3 {with more complications.} g4 19. Nxe5 dxe5 20. d6+) 18... g4 {[%emt 0:16:20]} 19. Qe1 {[%emt 0:03:05]} Rg7 {[%emt 0:02:58]} 20. Nb5 {[%emt 0:02:31]} Ng6 {[%emt 0:02:34]} 21. Kh1 {[%emt 0:04:45]} ({Reject} 21. Nxa7 g3 22. Rxc8 (22. hxg3 fxg3 23. Bxg3 Rxa7 $19) 22... gxf2+ 23. Qxf2 Rxc8 24. Nxc8 Qxc8 $17) ({Better is} 21. b3 $11) 21... g3 {[%emt 0:07:58]} ({Black should try} 21... a6 $1 $15 22. Na3 Bd7) 22. hxg3 $11 {[%emt 0:05:12]} fxg3 {[%emt 0:00:05]} 23. Bxg3 h4 $1 {[%emt 0:04:26]} 24. Bh2 {[%emt 0:02:33]} Nf6 $1 $40 {[%emt 0:00:40][%mdl 128] White must now prevent ...a6. White needs to defend precisely.} 25. g4 $2 {[%emt 0:27:03] [#]} (25. f4 $1 $11 Nxe4 26. fxe5 Ng3+ 27. Bxg3 hxg3 28. Qxg3 Nxe5 29. Qf2) 25... hxg3 $1 $17 {[%emt 0:00:09]} 26. Bxg3 {[%emt 0:03:35]} (26. Qxg3 $17 {is a better defense.} Be3 27. f4 (27. Rc7 $2 Bd7 $19) 27... Bxf4 28. Nxf4 Nxf4 29. Qe3) 26... a6 $19 {[%emt 0:06:09]} 27. Nc7 {[%emt 0:14:23]} (27. Nc3 $142) 27... Rxc7 {[%emt 0:00:56]} 28. Rxc7 {[%emt 0:04:01]} Qxc7 {[%emt 0:00:05]} 29. Rg1 $2 {[%emt 0:00:06]} (29. Rf2 {was necessary.}) 29... Qh7 {[%emt 0:01:43] [#] ...Bd2+ is the strong threat.} 30. Bh2 {[%emt 0:00:21]} Kf7 {[%emt 0:00:19]} 31. f4 {[%emt 0:01:02]} Bxf4 {[%emt 0:01:50]} 32. Nxf4 {[%emt 0:00:22]} Nxf4 {[%emt 0:00:06]} 33. Bf3 {[%emt 0:02:43]} Bd7 {[%emt 0:00:29] ( -> ...Rh8)} 34. Qd2 {[%emt 0:00:34]} Rh8 {[%emt 0:00:40]} 35. Rc1 {[%emt 0:00:30]} Nxe4 {[%emt 0:00:38] Weighted Error Value: White=1.35/Black=0.22 (precise)} 0-1

[Event "FIDE WY-U16 Olympiad 2022"]
[Site "Nakhchivan"]
[Date "2022.10.05"]
[Round "4.15"]
[White "Movahed, Sina"]
[Black "Ahmad, Khagan"]
[Result "1-0"]
[ECO "A06"]
[WhiteElo "2325"]
[BlackElo "2150"]
[Annotator "TA"]
[PlyCount "179"]
[EventDate "2022.10.02"]
[EventType "team-tourn"]
[EventCountry "AZE"]
[SourceTitle "playchess.com"]
[Source "ChessBase"]
[SourceQuality "1"]
[WhiteTeam "Iran"]
[BlackTeam "Azerbaijan"]
[WhiteTeamCountry "IRI"]
[BlackTeamCountry "AZE"]
[TimeControl "40/5400+30:1800+30"]

{[%evp 23,179,5,22,23,15,-72,-3,0,0,0,24,3,19,-5,-1,0,0,6,10,6,70,86,85,34,30,50,41,49,42,29,39,25,27,14,32,31,102,105,102,99,106,104,98,56,108,106,112,96,99,24,35,35,24,0,0,0,0,0,0,0,0,0,0,0,0,0,0,0,0,0,0,0,0,0,0,0,0,0,0,0,0,0,0,0,0,0,0,0,0,0,382,318,325,287,622,593,408,255,601,570,514,497,574,564,455,427,1813,847,29986,29982,29982,29974,29974,29975,29975,29976,29976,29977,29977,29978,29978,29979,29979,29977,29977,29976,29974,29974,29975,29970,29970,29970,29968,29969,29972,29973,29971,29972,29978,29978,29976,29972,29977,29978,29981,29981,29981,29979,29978,29970,29967,29968,29982,29983,29983,29982,29984,29985]} 1. Nf3 {[%emt 0:00:10]} d5 {[%emt 0:00:11]} 2. g3 {[%emt 0:00:06]} Nf6 {[%emt 0:00:13]} 3. Bg2 {[%emt 0:00:09]} e6 {[%emt 0:00:08]} 4. O-O {[%emt 0:00:04]} Be7 {[%emt 0:00:04]} 5. c4 {[%emt 0:00:04]} O-O {[%emt 0:00:06]} 6. b3 {[%emt 0:00:30]} c5 {[%emt 0:00:55]} 7. e3 {[%emt 0:00:40]} Nc6 {[%emt 0:00:56]} 8. Bb2 {[%emt 0:00:57]} b6 {[%emt 0:00:39]} 9. Qe2 {[%emt 0:01:49]} Bb7 {[%emt 0:04:45]} 10. Rd1 {[%emt 0:00:22]} Qc7 {[%emt 0:01:01]} 11. Nc3 {[%emt 0:00:38]} Rad8 {[%emt 0:00:32]} 12. Rac1 {[%emt 0:00:50]} Qb8 {[%emt 0:00:54]} 13. cxd5 {[%emt 0:14:19] A14: English Opening: 1...e6 with b3 by White.} Nxd5 {[%emt 0:00:21] [#]} 14. Ne4 $146 {[%emt 0:01:50]} (14. Nxd5 $11 Rxd5 15. d4) ({Predecessor:} 14. Nxd5 Rxd5 15. d4 cxd4 16. Nxd4 Nxd4 17. Bxd4 Rd7 18. Qg4 g6 19. Bxb7 Qxb7 20. Qf4 f6 21. Qg4 Kf7 22. Bb2 {½-½ (22) Real de Azua,E (2478)-Ocantos,M (2213) Buenos Aires 2017}) 14... h6 {[%emt 0:00:48]} ({Better is} 14... Ndb4 $1 $17 {Strongly threatening ...Ba6.} 15. d4 Ba6) 15. d3 $11 {[%emt 0:06:27] The position is equal.} Rc8 {[%emt 0:12:52]} 16. Nfd2 {[%emt 0:00:49]} f5 {[%emt 0:06:15]} 17. Nc3 {[%emt 0:00:40]} Bf6 {[%emt 0:00:11]} 18. Nc4 {[%emt 0:01:49]} Bxc3 {[%emt 0:00:15]} 19. Bxc3 {[%emt 0:00:10]} Nxc3 {[%emt 0:00:02]} 20. Rxc3 {[%emt 0:00:15]} Rcd8 {[%emt 0:00:07] Inhibits d4.} 21. a3 {[%emt 0:01:35]} Ne5 {[%emt 0:09:08]} (21... Qc7 $11) 22. Bxb7 $14 {[%emt 0:06:20]} Nxc4 {[%emt 0:00:05]} 23. Ba6 {[%emt 0:01:13]} (23. Bg2 $1 $16 Nxa3 24. d4) 23... Ne5 {[%emt 0:12:28]} (23... Nxa3 $2 24. Qb2 $18) 24. d4 {[%emt 0:00:55]} Qd6 {[%emt 0:00:19]} 25. Re1 {[%emt 0:10:25]} Nd7 {[%emt 0:00:15]} 26. Bb5 {[%emt 0:05:16]} Kh8 {[%emt 0:05:23]} 27. Rd3 {[%emt 0:03:25] aiming for dxc5.} Nf6 {[%emt 0:00:55][%cal Rc5d4]} 28. Red1 {[%emt 0:03:00]} Rc8 {[%emt 0:01:43]} 29. Bc4 {[%emt 0:02:05]} e5 {[%emt 0:07:30]} ({Black should try} 29... cxd4 $14 30. Rxd4 Qe7) 30. dxe5 $16 {[%emt 0:01:50]} Qxe5 {[%emt 0:00:05]} 31. Rd6 {[%emt 0:00:42]} Rce8 {[%emt 0:01:12]} 32. Qf3 {[%emt 0:01:24]} Re7 {[%emt 0:06:53]} 33. Qc6 {[%emt 0:02:56]} Qb2 {[%emt 0:03:42]} (33... Kh7 $14) 34. Rd8 {[%emt 0:02:19]} Rxd8 {[%emt 0:00:54]} 35. Rxd8+ {[%emt 0:00:06]} Kh7 {[%emt 0:00:04]} 36. Bd3 {[%emt 0:00:56] Active counter play!} ({White should play} 36. Qc8 $16) 36... g6 {[%emt 0:02:28]} 37. h3 {[%emt 0:08:01] Against Ng4} Kg7 {[%emt 0:01:50]} 38. Rd6 {[%emt 0:02:09]} Qxa3 {[%emt 0:03:18]} 39. Re6 {[%emt 0:01:54]} Rf7 {[%emt 0:00:49]} 40. Bc4 {[%emt 0:00:23]} Qb2 {[%emt 0:00:48]} 41. Kg2 {[%emt 0:31:12]} h5 {[%emt 0:31:43]} 42. Qd6 {[%emt 0:04:25]} Rd7 {[%emt 0:07:56]} 43. Re7+ {[%emt 0:04:45]} Rxe7 44. Qxe7+ $11 {[%emt 0:00:10][%mdl 4096] Endgame KQB-KQN} Kh6 {[%emt 0:00:05]} 45. Qf8+ {[%emt 0:01:03]} Kh7 $1 {[%emt 0:00:03]} (45... Kg5 {gets mated.} 46. h4+ Kg4 47. Qxf6 $3 {[%mdl 512]}) 46. g4 {[%emt 0:00:34]} hxg4 {[%emt 0:01:13]} 47. hxg4 {[%emt 0:00:08]} fxg4 {[%emt 0:09:06]} 48. Qf7+ {[%emt 0:00:11]} Kh6 {[%emt 0:00:49]} 49. Bd3 {[%emt 0:00:07][%csl Gd3][%cal Rf7g6]} Kg5 {[%emt 0:00:03]} 50. Qxg6+ {[%emt 0:03:34]} Kh4 {[%emt 0:00:10]} 51. Qg7 {[%emt 0:02:28]} Qe5 {[%emt 0:00:44]} 52. Bg6 {[%emt 0:00:31]} Qg5 {[%emt 0:00:57]} 53. Qh8+ {[%emt 0:01:43]} Nh5 {[%emt 0:00:02]} 54. Bxh5 {[%emt 0:01:36]} Qd5+ {[%emt 0:00:44]} 55. e4 {[%emt 0:01:15]} Qxe4+ {[%emt 0:00:15]} 56. Kh2 {[%emt 0:00:25] Threatening mate with Bg6+.} Qf4+ $2 {[%emt 0:00:06][%mdl 8192] [#] White now steadily converts the win.} (56... Kg5 $1 $11) 57. Kg1 $1 $18 {[%emt 0:00:05]} Kg5 {[%emt 0:01:51]} (57... Qd4 58. Qh6 Qa1+ 59. Kg2) 58. Be8 {[%emt 0:00:55]} Qd6 $2 {[%emt 0:00:00]} (58... Qe4 59. Qg7+ Kf4) 59. Qh5+ {[%emt 0:00:00]} Kf6 {[%emt 0:00:00]} 60. Qxg4 {[%emt 0:00:00] Black must now prevent Qg6+.} Qd3 {[%emt 0:00:00] Inhibits Qg6+.} (60... a6 61. Qf3+ Ke7) 61. Qh4+ {[%emt 0:00:00]} Ke6 {[%emt 0:00:00]} 62. Qf4 {[%emt 0:00:00]} Ke7 {[%emt 0:00:00]} 63. Qe5+ {[%emt 0:00:00]} Kd8 {[%emt 0:00:00]} 64. Bf7 {[%emt 0:00:00]} Qb1+ {[%emt 0:00:00]} (64... a6 $142 65. Bh5 Qd7 66. Qb8+ Ke7 67. Qxb6 Qf5) 65. Kg2 {[%emt 0:00:00] Qd6+ would kill now.} Kc8 {[%emt 0:00:00]} 66. Be6+ {[%emt 0:00:00] White mates.} Kb7 {[%emt 0:00:00]} 67. Bd5+ {[%emt 0:00:00]} Ka6 {[%emt 0:00:00]} 68. Qe8 {[%emt 0:00:00][%cal Re8a4]} b5 {[%emt 0:00:00]} 69. b4 {[%emt 0:00:00]} Qxb4 {[%emt 0:00:00]} 70. Qc6+ {[%emt 0:00:00]} ({Weaker is} 70. Qd7 Qd4 $14) 70... Ka5 {[%emt 0:00:00]} 71. Qc7+ {[%emt 0:00:00]} Ka4 {[%emt 0:00:00]} 72. Qxa7+ {[%emt 0:00:00]} Qa5 {[%emt 0:00:00]} 73. Qxc5 {[%emt 0:00:00]} Qd8 {[%emt 0:00:00]} 74. Qd4+ {[%emt 0:00:00]} Ka5 {[%emt 0:00:00]} 75. Qe5 {[%emt 0:00:00]} Qd7 {[%emt 0:00:00]} 76. Kg3 {[%emt 0:00:00]} Qh7 {[%emt 0:00:00]} 77. Qa1+ {[%emt 0:00:00]} Kb6 {[%emt 0:00:00]} 78. Qd4+ {[%emt 0:00:00]} Ka5 {[%emt 0:00:00]} 79. f4 {[%emt 0:00:00][%cal Bf2f4,Bf4f5][%mdl 32]} Qg6+ {[%emt 0:00:00]} 80. Kf3 {[%emt 0:00:00]} Qh5+ {[%emt 0:00:00]} 81. Ke3 {[%emt 0:00:00]} Qh3+ {[%emt 0:00:00]} 82. Bf3 {[%emt 0:00:00]} b4 {[%emt 0:00:00]} 83. Qe5+ {[%emt 0:00:00]} Ka4 {[%emt 0:00:00]} 84. f5 {[%emt 0:00:00]} Qh6+ {[%emt 0:00:00]} 85. Qf4 {[%emt 0:00:00]} Qf6 {[%emt 0:00:00]} 86. Bd5 {[%emt 0:00:00]} Qc3+ {[%emt 0:00:00] [#]} 87. Ke2 $1 {[%emt 0:00:00]} Qc2+ {[%emt 0:00:00]} 88. Qd2 {[%emt 0:00:00]} Qc8 {[%emt 0:00:00]} 89. Qa2+ {[%emt 0:00:00]} Kb5 {[%emt 0:00:00] [#]} 90. Qc4+ $1 {[%emt 0:00:00][%mdl 512] Weighted Error Value: White=0.14 (very precise) /Black=0.35} 1-0